[Event "Czech Championship 2022"]
[Site "Usti nad Labem"]
[Date "2022.05.22"]
[Round "9.8"]
[White "Gnojek, Petr"]
[Black "Nemec, Jachym"]
[Result "1/2-1/2"]
[ECO "E36"]
[WhiteElo "2302"]
[BlackElo "2367"]
[Annotator "TA"]
[PlyCount "82"]
[EventDate "2022.05.12"]
[EventType "swiss"]
[EventCountry "CZE"]
[SourceTitle "playchess.com"]
[Source "ChessBase"]
[SourceQuality "1"]
[TimeControl "40/5400+30:1800+30"]

{[%evp 15,82,9,14,0,0,-7,3,6,72,57,63,63,63,60,60,61,67,40,73,72,43,29,115,106,256,173,187,185,146,146,163,168,169,162,161,0,0,8,0,0,6,0,0,0,0,0,0,0,0,0,3,0,79,96,110,97,106,0,0,0,0,0,0,0,0,0,0,0,0]} 1. d4 {[%emt 0:00:04]} Nf6 {[%emt 0:00:05]} 2. c4 {[%emt 0:00:06]} e6 {[%emt 0:00:04]} 3. Nc3 {[%emt 0:00:07]} Bb4 {[%emt 0:00:05]} 4. Qc2 {[%emt 0:00:25]} O-O {[%emt 0:00:07]} 5. a3 {[%emt 0:00:20]} Bxc3+ {[%emt 0:00:05]} 6. Qxc3 {[%emt 0:00:05]} d5 {[%emt 0:00:12]} 7. Nf3 {[%emt 0:04:02]} dxc4 {[%emt 0:00:12]} 8. Qxc4 {[%emt 0:00:07]} b6 {[%emt 0:00:04]} 9. Bg5 {[%emt 0:00:11] E36: Nimzo-Indian: Classical: 4...d5 5 a3.} Ba6 {[%emt 0:00:42]} 10. Qc2 {[%emt 0:04:47]} c5 {[%emt 0:32:54]} 11. dxc5 {[%emt 0:17:16]} Nbd7 {[%emt 0:22:01]} (11... bxc5 $11 12. Qxc5 Nbd7) 12. Rd1 {[%emt 0:00:56] [#] Bxf6 is the strong threat.} Qc7 {[%emt 0:06:43]} 13. c6 {[%emt 0:08:36] Strongly threatening Rc1.} Rac8 {[%emt 0:02:35]} 14. Nd4 {[%emt 0:00:26]} (14. Rxd7 $2 Nxd7 15. Nd4 Nb8 $19) 14... Nb8 {[%emt 0:00:43][%cal Rb8c6]} 15. Bxf6 {[%emt 0:03:38]} gxf6 {[%emt 0:00:09]} 16. Rc1 {[%emt 0:00:15]} (16. e3 $5 {[%cal Rf1a6]}) 16... Rfd8 {[%emt 0:10:28]} (16... e5 $2 17. Nf5 Kh8 18. Qa4 $18) 17. e3 {[%emt 0:01:44]} Bxf1 {[%emt 0:00:12]} 18. Kxf1 {[%emt 0:11:11][%cal Be1f1,Bf1e2,Be2d2][%mdl 32] [#]} Rd5 $146 {[%emt 0:08:12] [#]} (18... e5 $2 19. Nf5 Kh8 20. Qe4 $18) (18... Nxc6 $1 $11 {keeps the balance.} 19. g3 (19. Qxc6 Qxc6 20. Nxc6 Rxc6 $14) 19... Rxd4 20. exd4 Qd7) ({Predecessor:} 18... Nxc6 19. g3 Qb7 20. Nxc6 Kh8 21. b4 a6 22. a4 b5 23. axb5 axb5 24. Ke2 Rd6 {1-0 (51) Hoyer,J (2193)-Koch Mueller,O (1985) Svendborg 2022}) 19. b4 $1 $16 {[%emt 0:03:41] aiming for g3.} Rcd8 {[%emt 0:07:55]} (19... Qd6 $16) 20. Ke2 {[%emt 0:11:38]} e5 {[%emt 0:00:55]} 21. Nf5 {[%emt 0:00:12]} Rd2+ {[%emt 0:00:59]} 22. Qxd2 {[%emt 0:00:04]} Rxd2+ {[%emt 0:00:05]} 23. Kxd2 {[%emt 0:00:03]} Nxc6 {[%emt 0:00:41]} 24. Ke2 {[%emt 0:00:04]} Qd7 {[%emt 0:01:06]} 25. g4 {[%emt 0:00:10]} (25. Ng3 $18 {And now Rhd1 would win.} Qg4+ 26. f3) 25... Ne7 $1 $11 {[%emt 0:00:13]} 26. Nxe7+ {[%emt 0:11:44]} Qxe7 {[%emt 0:00:01][%mdl 4096] Endgame KQ-KRR} 27. h3 {[%emt 0:01:21]} Qe6 {[%emt 0:00:07]} 28. Rc3 {[%emt 0:01:19]} Qa2+ {[%emt 0:00:48]} 29. Kf3 {[%emt 0:00:13]} e4+ $1 {[%emt 0:02:13]} 30. Kg2 {[%emt 0:03:13] Threatens to win with Rd1.} Qe2 {[%emt 0:00:26] Against Rd1} 31. Rf1 {[%emt 0:00:06]} Kg7 {[%emt 0:00:33]} 32. Rc7 {[%emt 0:05:14]} a6 {[%emt 0:00:35]} ({Don't play} 32... h5 33. gxh5 Qxh5 34. Rg1 $14) 33. Rd7 {[%emt 0:02:32] Active counter play!} f5 {[%emt 0:01:58]} (33... Qf3+ $11 34. Kh2 Qe2) 34. gxf5 $16 {[%emt 0:03:01]} Qf3+ {[%emt 0:01:02]} 35. Kh2 {[%emt 0:00:06]} Qxf5 {[%emt 0:00:18]} 36. Rd4 {[%emt 0:00:12]} (36. Rg1+ $16 Kf8 37. Rd2) 36... Qe5+ $11 {[%emt 0:00:42] The position is equal.} 37. Kg2 {[%emt 0:01:41]} Qg5+ {[%emt 0:00:04]} ({But not} 37... Qf5 38. Rd2 $14) 38. Kh1 {[%emt 0:00:03] Hoping for Rg1.} Qf5 {[%emt 0:00:11]} 39. Kg2 {[%emt 0:01:23]} Qg5+ {[%emt 0:00:33]} 40. Kh1 {[%emt 0:00:27] Black must now prevent Rg1.} Qf5 {[%emt 0:00:24]} 41. Kh2 {[%emt 0:08:31]} Qe5+ {[%emt 0:01:37] Blacks defense is rewarded with a draw.  Weighted Error Value: White=0.21 (precise) /Black=0.18 (very precise)} 1/2-1/2

[Event "Czech Championship 2022"]
[Site "Usti nad Labem"]
[Date "2022.05.22"]
[Round "9.9"]
[White "Stalmach, Richard"]
[Black "Sykora, Marek"]
[Result "1-0"]
[ECO "D46"]
[WhiteElo "2350"]
[BlackElo "2249"]
[Annotator "TA"]
[PlyCount "75"]
[EventDate "2022.05.12"]
[EventType "swiss"]
[EventCountry "CZE"]
[SourceTitle "playchess.com"]
[Source "ChessBase"]
[SourceQuality "1"]
[TimeControl "40/5400+30:1800+30"]

{[%evp 19,75,12,35,0,0,0,19,-5,0,-87,-88,-95,-100,-149,-148,-187,-122,-126,-80,-97,-91,-91,0,0,0,0,0,0,0,0,0,0,0,5,238,0,224,225,203,133,735,725,1209,1153,29964,29962,6395,2462,29986,29987,29986,29949,29997,29998,29998,29999,29999,29999]} 1. d4 {[%emt 0:00:03]} d5 {[%emt 0:00:06]} 2. c4 {[%emt 0:00:05]} c6 {[%emt 0:00:04]} 3. Nc3 {[%emt 0:00:05]} Nf6 {[%emt 0:00:06]} 4. Nf3 {[%emt 0:00:06]} e6 {[%emt 0:00:13]} 5. e3 {[%emt 0:00:05]} Nbd7 {[%emt 0:00:08]} 6. Qc2 {[%emt 0:00:28]} Bd6 {[%emt 0:00:41]} 7. Bd3 {[%emt 0:00:24]} dxc4 {[%emt 0:03:01]} 8. Bxc4 {[%emt 0:00:08]} O-O {[%emt 0:01:34]} 9. O-O {[%emt 0:00:25]} e5 {[%emt 0:05:18]} 10. h3 {[%emt 0:06:35]} exd4 {[%emt 0:03:41]} 11. Nxd4 {[%emt 0:04:37] D46: Semi-Slav: 5 e3 Nbd7 6 Bd3, Black avoids the Meran.} (11. exd4 {is interesting.} Nb6 12. Bb3 Re8 13. Bg5) 11... Ne5 {[%emt 0:02:47]} 12. Be2 {[%emt 0:01:52]} a6 {[%emt 0:06:50] [#]} 13. f4 $146 {[%emt 0:10:24] The position is equal.} ({Predecessor:} 13. Rd1 Qe7 14. b3 Be6 15. f4 Ned7 16. e4 Bb4 17. e5 Bxc3 18. Qxc3 Nd5 19. Qc2 N7b6 20. Bd3 Qh4 21. Nf3 Qh5 22. Ng5 h6 23. Be2 Qh4 24. Qh7# {1-0 (24) Drygalov,S (2372)-Anchutin,N (2144) Khanty-Mansiysk 2016}) 13... Ng6 {[%emt 0:00:50][%cal Og6f4]} 14. a4 {[%emt 0:04:43] [#]} (14. Nf3 $11 {keeps the balance.}) 14... Nxf4 $1 $17 {[%emt 0:14:15]} 15. exf4 {[%emt 0:00:07] Hoping for Kh1.} Bc5 {[%emt 0:00:04]} 16. Rd1 {[%emt 0:00:40]} Bxd4+ {[%emt 0:00:16]} 17. Kh1 {[%emt 0:00:26]} Qb6 {[%emt 0:00:52]} (17... Re8 $1 $19 {[%cal Of6g4] ...Ng4! is the strong threat.} 18. f5 Qd6) 18. Ra3 {[%emt 0:03:13][%cal Ba1a3,Ba3c3,Bc3c5,Bc5g5][%mdl 32]} Bxc3 {[%emt 0:13:04]} (18... Re8 $142 19. Bf3 Qc5) 19. Rxc3 {[%emt 0:02:21]} Re8 {[%emt 0:02:24] Inhibits Be3.} 20. Bf3 {[%emt 0:14:58] Inhibits Nd5.} Qa5 {[%emt 0:10:04] Against f5} (20... Be6 $17 {aiming for ...Bd5.} 21. Be3 Qa5) 21. Rc5 $1 $11 {[%emt 0:02:37]} Qb4 {[%emt 0:00:17]} (21... Re1+ $2 22. Kh2 Qb6 23. Rxe1 $18) 22. Bd2 {[%emt 0:02:02]} Qd4 {[%emt 0:00:47]} 23. Bc1 {[%emt 0:08:44] A strong pair of Bishops.} Qb4 {[%emt 0:00:52]} 24. Bd2 $36 {[%emt 0:01:50][%mdl 2048] White has the initiative.} Qd4 {[%emt 0:00:38]} 25. Rg5 {[%emt 0:03:31]} h6 {[%emt 0:02:41]} 26. Rg3 {[%emt 0:00:56]} Be6 $2 {[%emt 0:08:38]} ({Don't play} 26... Qf2 27. Kh2 $16) (26... Kh8 $11) 27. Kh2 $2 {[%emt 0:06:11]} (27. f5 $18 Qc4 28. Qxc4 Bxc4 29. Bxh6) 27... Qc4 $2 {[%emt 0:05:18] [#]} (27... Bd5 $11) 28. Bc3 $1 $18 {[%emt 0:04:27] Threatens to win with Qc1.} Qxf4 {[%emt 0:02:24] [#]} 29. Rd4 {[%emt 0:00:40]} Qf5 {[%emt 0:00:30][%mdl 8192]} (29... Qc7 $16) 30. Qc1 {[%emt 0:03:09]} Nh5 {[%emt 0:09:19]} 31. Bxh5 {[%emt 0:01:34] Qxh6 would kill now.} Qxh5 {[%emt 0:00:06] [#]} 32. Rxg7+ $3 {[%emt 0:00:46][%mdl 576] Decoy} Kxg7 {[%emt 0:00:07]} 33. Rh4+ {[%emt 0:01:10]} (33. Rd5+ $142 Kg6 34. Rxh5 Kxh5 35. Qf4) 33... Kg6 {[%emt 0:00:12]} 34. Rxh5 {[%emt 0:00:49] White mates.} Kxh5 {[%emt 0:00:06]} 35. Bg7 {[%emt 0:01:58][%csl Gg7][%cal Rc1h6]} Kg6 {[%emt 0:03:22]} 36. Qxh6+ {[%emt 0:00:06]} Kf5 {[%emt 0:00:03]} 37. Qf6+ {[%emt 0:00:05]} Ke4 {[%emt 0:00:04]} 38. Qd4+ {[%emt 0:00:08] White used his chance.  Weighted Error Value: White=0.25 (precise) /Black=0.98} 1-0

[Event "Czech Championship 2022"]
[Site "Usti nad Labem"]
[Date "2022.05.22"]
[Round "9.10"]
[White "Mica, Marek"]
[Black "Freisler, Pavel"]
[Result "0-1"]
[ECO "A05"]
[WhiteElo "2343"]
[BlackElo "2239"]
[Annotator "TA"]
[PlyCount "78"]
[EventDate "2022.05.12"]
[EventType "swiss"]
[EventCountry "CZE"]
[SourceTitle "playchess.com"]
[Source "ChessBase"]
[SourceQuality "1"]
[TimeControl "40/5400+30:1800+30"]

{[%evp 11,78,0,-1,-10,-9,-3,16,6,11,6,6,-2,-4,-11,0,-1,0,-2,8,-21,-16,-73,-69,-66,-53,-96,-97,-114,-107,-102,-97,-139,-139,-152,-89,-267,-219,-209,-207,-200,-202,-203,-208,-368,-349,-361,-349,-425,-409,-29992,-29993,-29993,-29994,-29994,-29993,-29994,-29991,-29991,-29988,-29992,-29993,-29994,-29989,-29989,-29990,-29990,-29983,-29998,-29964]} 1. b3 {[%emt 0:00:05]} d5 {[%emt 0:03:35]} 2. Bb2 {[%emt 0:00:17]} Nf6 {[%emt 0:00:05]} 3. Nf3 {[%emt 0:00:31]} g6 {[%emt 0:01:41]} 4. g3 {[%emt 0:01:13]} Bg7 {[%emt 0:00:07]} 5. Bg2 {[%emt 0:00:16]} c5 {[%emt 0:00:35]} 6. O-O {[%emt 0:09:56]} Nc6 {[%emt 0:00:50]} 7. e3 {[%emt 0:05:26] 7.Ne5 is setting a new trend. A05: Réti Opening: 1 Nf3 Nf6.} O-O {[%emt 0:00:42]} 8. Ne5 {[%emt 0:01:38]} Qd6 {[%emt 0:17:22]} 9. Nxc6 {[%emt 0:01:35] The position is equal.} Qxc6 {[%emt 0:00:04]} 10. c4 {[%emt 0:01:22] [#]} Be6 $146 {[%emt 0:00:11]} ({Predecessor:} 10... Bg4 11. Qc1 Qd7 12. cxd5 Bh3 13. Bxh3 Qxh3 14. f3 h5 15. Rf2 Nxd5 16. Bxg7 Kxg7 17. Qxc5 {0-1 (30) Thybo,J (2544)-Nguyen,H (1999) Chess.com INT 2022}) 11. d3 {[%emt 0:12:16][%cal Oe3e4]} Rad8 {[%emt 0:04:45]} 12. Qc2 {[%emt 0:04:14]} Qc8 {[%emt 0:01:36]} 13. Rd1 {[%emt 0:03:32]} Bh3 {[%emt 0:02:41]} 14. Bh1 {[%emt 0:01:56]} b6 {[%emt 0:03:19]} 15. Nd2 {[%emt 0:06:04]} Qf5 {[%emt 0:03:53]} 16. Nf3 {[%emt 0:10:39]} (16. cxd5 $11 Nxd5 17. Be4) 16... Bg4 $17 {[%emt 0:09:39]} 17. Qe2 {[%emt 0:01:25]} Qh5 $36 {[%emt 0:19:38][%cal Oe7e5][%mdl 2048] Black fights for an advantage.} 18. cxd5 {[%emt 0:08:46]} Nxd5 {[%emt 0:04:38]} ({Reject} 18... Rxd5 $6 19. e4 Rd7 20. d4 $15) (18... Qxd5 $6 19. d4 $11) 19. Bxg7 {[%emt 0:00:28]} Kxg7 {[%emt 0:00:02]} 20. Rac1 {[%emt 0:03:34]} Rd6 {[%emt 0:05:30] Threatens to win with ...Rf6. Black is more active.} 21. e4 {[%emt 0:04:20] [#]} Nb4 {[%emt 0:03:08] Strongly threatening ...Rf6.} 22. d4 {[%emt 0:03:06]} Nc6 {[%emt 0:03:05]} ({Black should try} 22... cxd4 {...d3 is the strong threat.} 23. e5 Rdd8) 23. dxc5 $2 {[%emt 0:02:59] This move loses the game for White.} (23. h3 $17 {is the only way for White.} Qxh3 24. dxc5 bxc5 25. Rd5) 23... Rxd1+ {[%emt 0:05:37]} 24. Rxd1 {[%emt 0:06:49] [#]} Ne5 $1 {[%emt 0:00:02][%cal Re5f3]} 25. Qb2 {[%emt 0:00:13][%cal Od1d5] Hoping for Rd5!} f6 {[%emt 0:00:11]} 26. Nxe5 {[%emt 0:00:27]} Bxd1 {[%emt 0:00:12]} 27. Nd7 {[%emt 0:00:47]} (27. Nd3 {was necessary.}) 27... Rd8 $19 {[%emt 0:04:32][%cal Bf8d8,Bd8d7,Bd7d1,Bd1h1,Bh1f1,Bf1c1,Bc1c6][%mdl 32]} 28. c6 {[%emt 0:01:12]} Bg4 {[%emt 0:00:34]} 29. Qa3 {[%emt 0:00:55]} Kf7 {[%emt 0:01:41]} 30. Qxa7 {[%emt 0:03:23]} (30. Bg2 $19 Bxd7 31. cxd7 Rxd7 32. Bf1) 30... Bh3 {[%emt 0:00:50][%cal Rh5d1] Black mates.} 31. f3 {[%emt 0:02:53] [#]} Rxd7 $1 {[%emt 0:00:14][%cal Rh5c5][%mdl 512]} 32. Qxb6 {[%emt 0:00:41]} Rd1+ {[%emt 0:00:30]} 33. Kf2 {[%emt 0:00:07]} Rxh1 {[%emt 0:00:08]} 34. Ke3 {[%emt 0:02:20]} Rf1 {[%emt 0:01:23]} 35. g4 {[%emt 0:00:57]} Qg5+ {[%emt 0:00:28]} 36. Kd4 {[%emt 0:00:53]} Qe5+ {[%emt 0:01:34]} 37. Kc4 {[%emt 0:00:14]} Rc1+ {[%emt 0:00:34]} 38. Kb4 {[%emt 0:00:41]} Qd6+ {[%emt 0:00:38]} 39. Ka5 {[%emt 0:01:12]} Rxc6 {[%emt 0:00:24] Weighted Error Value: White=0.49/Black=0.05 (flawless)} 0-1

[Event "Czech Championship 2022"]
[Site "Usti nad Labem"]
[Date "2022.05.22"]
[Round "9.11"]
[White "Vojta, Jakub"]
[Black "Babula, Vlastimil jr"]
[Result "1/2-1/2"]
[ECO "B22"]
[WhiteElo "2396"]
[BlackElo "2217"]
[Annotator "TA"]
[PlyCount "60"]
[EventDate "2022.05.12"]
[EventType "swiss"]
[EventCountry "CZE"]
[SourceTitle "playchess.com"]
[Source "ChessBase"]
[SourceQuality "1"]
[TimeControl "40/5400+30:1800+30"]

{[%evp 19,60,0,0,0,12,0,1,5,6,0,0,-10,26,0,25,14,19,14,19,10,11,0,14,0,14,-16,-13,-12,-12,-13,0,-11,-11,-20,-23,-23,-16,-20,0,0,18,8,46]} 1. e4 {[%emt 0:00:03]} c5 {[%emt 0:00:07]} 2. c3 {[%emt 0:00:04]} Nf6 {[%emt 0:00:38]} 3. e5 {[%emt 0:00:05]} Nd5 {[%emt 0:00:06]} 4. Nf3 {[%emt 0:00:21]} d6 {[%emt 0:01:14]} 5. d4 {[%emt 0:00:33]} cxd4 {[%emt 0:00:48]} 6. cxd4 {[%emt 0:00:07]} Nc6 {[%emt 0:00:44]} 7. Bc4 {[%emt 0:00:07]} Nb6 {[%emt 0:00:58]} 8. Bb5 {[%emt 0:00:24]} dxe5 {[%emt 0:01:25]} 9. Nxe5 {[%emt 0:00:07]} Bd7 {[%emt 0:02:10]} 10. Nxd7 {[%emt 0:00:03]} Qxd7 {[%emt 0:00:10]} 11. O-O {[%emt 0:00:05] B22: Sicilian: 2 c3.} Rd8 {[%emt 0:02:45]} 12. Nc3 {[%emt 0:04:42]} e6 {[%emt 0:03:10]} 13. Be3 {[%emt 0:01:44]} Be7 {[%emt 0:07:19]} 14. Qg4 {[%emt 0:00:52]} O-O {[%emt 0:04:07]} 15. Rfd1 {[%emt 0:06:53]} Kh8 {[%emt 0:05:00]} 16. Rac1 {[%emt 0:02:35]} a6 {[%emt 0:06:17][%cal Ba7a6,Ba6a5,Ba5a4][%mdl 32]} 17. Bxc6 {[%emt 0:07:29]} bxc6 {[%emt 0:09:33] [#]} 18. Qe2 $146 {[%emt 0:02:36]} ({Predecessor:} 18. Qh5 f5 19. Bf4 Bf6 20. Be5 Bxe5 21. dxe5 Nd5 22. Na4 Qc7 23. Qe2 f4 24. Re1 f3 25. gxf3 Nf4 26. Qe4 Qe7 27. Rc2 Qg5+ {0-1 (27) Avtsynov,A (1875)-Golovchanov,A (2110) Dimitrovgrad 2009}) 18... Qb7 {[%emt 0:01:44]} 19. Ne4 {[%emt 0:05:39]} Nd5 {[%emt 0:03:43]} 20. Nc5 {[%emt 0:09:53]} Qb5 {[%emt 0:00:41]} 21. Kf1 {[%emt 0:02:58]} a5 {[%emt 0:07:13]} 22. Qxb5 {[%emt 0:15:23]} cxb5 {[%emt 0:00:19]} 23. Ke2 {[%emt 0:00:29]} a4 {[%emt 0:05:50]} 24. Nd3 {[%emt 0:05:21]} Rc8 {[%emt 0:02:51]} 25. Rxc8 {[%emt 0:05:35]} Rxc8 {[%emt 0:00:01]} 26. Rc1 {[%emt 0:00:11]} Rxc1 {[%emt 0:01:15]} 27. Bxc1 {[%emt 0:00:42]} Kg8 {[%emt 0:04:38]} 28. Nf4 {[%emt 0:04:07] The position is equal.} Nb6 {[%emt 0:07:29]} 29. Kd3 {[%emt 0:00:47]} Bg5 {[%emt 0:06:09]} 30. Ne2 {[%emt 0:02:29]} Bxc1 {[%emt 0:02:04] An interesting draw.  Weighted Error Value: White=0.07 (flawless) /Black=0.07 (flawless)} 1/2-1/2

[Event "Czech Championship 2022"]
[Site "Usti nad Labem"]
[Date "2022.05.22"]
[Round "9.12"]
[White "Mikes, Jan"]
[Black "Jun, Rudolf"]
[Result "1/2-1/2"]
[ECO "B23"]
[WhiteElo "2349"]
[BlackElo "2183"]
[Annotator "TA"]
[PlyCount "75"]
[EventDate "2022.05.12"]
[EventType "swiss"]
[EventCountry "CZE"]
[SourceTitle "playchess.com"]
[Source "ChessBase"]
[SourceQuality "1"]
[TimeControl "40/5400+30:1800+30"]

{[%evp 9,75,35,41,37,28,27,73,33,36,40,40,33,110,66,71,60,100,62,77,64,90,90,97,85,83,77,99,46,75,28,114,122,125,135,117,52,87,94,77,89,83,85,119,81,131,34,34,0,79,83,123,52,51,0,0,-500,1,-185,-192,-197,-182,-190,0,0,0,-185,0,0]} 1. e4 {[%emt 0:00:04] ChessBase II} c5 {[%emt 0:01:01]} 2. Nc3 {[%emt 0:00:27]} Nc6 {[%emt 0:00:19]} 3. Bb5 {[%emt 0:00:13]} g6 {[%emt 0:00:25]} 4. Bxc6 {[%emt 0:00:08]} dxc6 {[%emt 0:00:06]} 5. f4 {[%emt 0:00:17]} e5 {[%emt 0:02:33]} 6. d3 {[%emt 0:00:40] B23: Closed Sicilian: Lines without g3.} Bg7 {[%emt 0:01:23]} 7. Nf3 {[%emt 0:00:39]} Bg4 {[%emt 0:00:48]} (7... exf4 $11 8. Bxf4 Nf6) 8. O-O {[%emt 0:00:38] White is better.} (8. h3 $5 {[%cal Rh3g4]} Bxf3 9. Qxf3 $14) 8... Ne7 {[%emt 0:00:51]} 9. Qe1 {[%emt 0:07:39] [#]} (9. fxe5 {keeps more tension.} Bxe5 10. Bh6 f5 11. h3) 9... exf4 $146 {[%emt 0:01:08]} ({Predecessor:} 9... Bxf3 10. Rxf3 Qd6 11. Qh4 f6 12. fxe5 Qxe5 13. Qh3 Rd8 14. Bf4 Qd4+ 15. Be3 Qd6 {1-0 (26) Bluhm,S (2229)-Zenere,G (1931) Vaujany 2016 EXT 2017 [ChessBase II]}) 10. Bxf4 {[%emt 0:00:20]} h6 {[%emt 0:07:24]} (10... Qd7 $14) 11. Kh1 {[%emt 0:05:17]} Bxf3 {[%emt 0:00:39]} 12. Rxf3 {[%emt 0:00:34]} g5 {[%emt 0:02:32]} 13. Be3 {[%emt 0:02:42]} b6 $1 {[%emt 0:01:16]} 14. Qd2 {[%emt 0:07:02] White is more active.} Ng6 {[%emt 0:01:35]} 15. Raf1 {[%emt 0:00:57]} O-O {[%emt 0:00:48]} 16. Ne2 {[%emt 0:01:11]} Nh4 {[%emt 0:06:55]} 17. R3f2 {[%emt 0:02:52]} Be5 {[%emt 0:02:56]} 18. c3 {[%emt 0:04:28]} (18. a3 $16) 18... Qe7 {[%emt 0:02:26]} 19. d4 {[%emt 0:04:39]} (19. b4 $16) 19... Rad8 {[%emt 0:01:27]} (19... cxd4 $11 20. cxd4 Bg7) 20. Qc2 $1 $16 {[%emt 0:04:00]} cxd4 {[%emt 0:00:50]} 21. cxd4 {[%emt 0:00:06]} Bg7 {[%emt 0:02:58]} 22. Ng3 {[%emt 0:14:41]} ({But not} 22. Qxc6 $6 Rc8 23. Qd5 Rcd8 $11) (22. g3 $1 $16 {[%cal Rg3h4]} c5 23. dxc5 (23. gxh4 cxd4 24. Bxg5 hxg5 $16)) 22... Bxd4 {[%emt 0:09:40]} 23. Bxd4 {[%emt 0:00:07]} Rxd4 {[%emt 0:00:07]} 24. Qxc6 {[%emt 0:04:36]} Qd6 {[%emt 0:03:54]} 25. Qc2 {[%emt 0:01:38]} Qe5 {[%emt 0:02:12]} 26. Qb3 {[%emt 0:00:30][%cal Rf2f7]} Qe7 {[%emt 0:04:52]} (26... Qc7 $142) 27. Rf6 {[%emt 0:01:40]} (27. h3 $16) 27... Rd6 $1 $14 {[%emt 0:03:31]} 28. R6f2 {[%emt 0:19:08]} Qe6 {[%emt 0:05:07]} (28... Rd4 $11 {remains equal.}) 29. Qa3 $16 {[%emt 0:02:05]} a5 {[%emt 0:06:47]} 30. h3 {[%emt 0:00:31]} (30. Nh5 $1 $16) 30... Rfd8 $14 {[%emt 0:02:52] ...Rd3 is the strong threat.} 31. Nh5 {[%emt 0:06:48]} ({Better is} 31. Rxf7 $14 Qxf7 32. Rxf7 Kxf7 33. Qb3+ Kf8 34. Ne2) 31... Rd3 $36 {[%emt 0:05:52][%mdl 2048] Black is pushing.} 32. Qa4 {[%emt 0:00:38][%mdl 8192] [#]} (32. Nf6+ $11 {and White stays safe.} Kg7 33. Nh5+ Kg8 34. Nf6+ Kg7 35. Nh5+ Kh8 36. b3 Nxg2 37. Qb2+ R8d4 38. Qa3 Rxh3+ 39. Kg1) 32... Rxh3+ $2 {[%emt 0:17:43]} (32... Nxg2 $1 $19 {[%mdl 512]} 33. Nf6+ Kg7 34. Nh5+ Kh8 35. Kxg2 Qxh3+ 36. Kg1 Qg4+ 37. Rg2 Qxh5) 33. gxh3 $2 {[%emt 0:00:07]} (33. Kg1 $1 $11 {and White is okay.} Nf3+ 34. Rxf3 Rxh5 35. Rxf7) 33... Qxh3+ $19 {[%emt 0:00:17]} 34. Kg1 {[%emt 0:00:05]} Qg4+ {[%emt 0:00:21][%mdl 1024] Black has strong compensation.} 35. Kh1 {[%emt 0:00:05] Nf6+ would kill now.} Qh3+ {[%emt 0:00:25]} 36. Kg1 {[%emt 0:00:04]} Qg4+ {[%emt 0:00:05]} 37. Kh1 {[%emt 0:00:03] Intending Nf6+ and mate.} Qh3+ $2 {[%emt 0:04:22]} ({Black should try} 37... Qxh5 $19 38. Rh2 Qg4) 38. Kg1 {[%emt 0:00:05] Weighted Error Value: White=0.52/Black=0.55} 1/2-1/2